[Event "Khanty-Mansiysk FIDE GP (Women)"]
[Site "Khanty-Mansiysk"]
[Date "2014.04.17"]
[Round "8"]
[White "Muminova, Nafisa"]
[Black "Dzagnidze, Nana"]
[Result "0-1"]
[ECO "B51"]
[WhiteElo "2321"]
[BlackElo "2550"]
[Annotator "ChessBase Website"]
[PlyCount "100"]
[EventDate "2014.04.09"]
[EventType "tourn"]
[EventRounds "11"]
[EventCountry "RUS"]
[EventCategory "10"]
[SourceTitle "CBM 160"]
[Source "ChessBase"]
[SourceDate "2014.05.15"]
[SourceVersion "1"]
[SourceVersionDate "2014.05.15"]
[SourceQuality "1"]
[TimeControl "40/5400+30:1800+30"]
[WhiteClock "1:30:00"]
[BlackClock "1:30:00"]

1. e4 {[%emt 0:00:00]} c5 {[%emt 0:00:00]} 2. Nf3 {[%emt 0:00:00]} Nc6 {
[%emt 0:00:00]} 3. Bb5 {[%emt 0:00:00]} d6 {[%emt 0:01:09]} 4. O-O {[%emt 0:00:
26]} Bd7 {[%emt 0:00:08]} 5. c3 {[%emt 0:00:48]} a6 {[%emt 0:03:29]} 6. Ba4 {
[%emt 0:00:09]} Nf6 {[%emt 0:02:25]} 7. Re1 {[%emt 0:00:45]} c4 {[%emt 0:03:10]
} 8. Bc2 {[%emt 0:07:10]} Bg4 {[%emt 0:06:16]} 9. h3 {[%emt 0:07:16]} (9. b3
cxb3 10. axb3 e6 11. d4 d5 12. Bg5 Be7 13. Bxf6 Bxf6 14. exd5 Qxd5 15. Be4 Qd6
16. Nbd2 O-O 17. Qc2 h5 18. Nc4 Qc7 19. Bxc6 Qxc6 20. Nfe5 Qc7 21. Nxg4 hxg4
22. Re4 Rac8 23. Rxg4 b5 24. Nd2 Rfd8 25. Qd3 Qxc3 26. Qxc3 Rxc3 27. Ne4 Bxd4
28. Nxc3 Bxc3 29. Rc1 Rd2 30. h4 b4 31. Rc4 a5 32. g4 Kh7 33. Kg2 e5 34. Kf3
Rb2 35. Ra1 Bd4 36. Rxa5 Rxb3+ 37. Ke4 Bxf2 38. Rxe5 Re3+ {Bologan,V (2686)
-Wang,H (2691) Poikovsky 2008 1/2-1/2}) 9... Bh5 {[%emt 0:01:07]} 10. b3 {
[%emt 0:14:52]} cxb3 {[%emt 0:04:21]} 11. axb3 {[%emt 0:02:19]} Ne5 $146 {
[%emt 0:09:14]} (11... e5 12. d3 Be7 13. Nbd2 d5 14. Bb2 O-O 15. exd5 Nxd5 16.
Nf1 Rc8 17. Ng3 Bg6 18. Qd2 Qc7 19. Ne4 Rfd8 20. Rac1 h6 21. Red1 Qb6 22. Qe1
Bh5 23. g4 Bg6 24. Qf1 Nf4 25. Ng3 Bc5 26. Rd2 e4 27. Nxe4 Bxe4 28. dxe4 Rxd2
29. Nxd2 Bxf2+ 30. Kh1 Qe3 31. Nc4 Qf3+ 32. Kh2 Bg3+ {0-1 (32) Fargere,F (2520)
-Smirin,I (2658) Aix-les-Bains 2011}) 12. d4 {[%emt 0:00:39]} Nxf3+ {[%emt 0:
00:20]} 13. gxf3 {[%emt 0:00:04]} e6 {[%emt 0:00:35]} 14. Nd2 {[%emt 0:02:05]}
d5 {[%emt 0:10:29]} 15. e5 {[%emt 0:04:47]} Nd7 {[%emt 0:04:07]} 16. Nf1 {
[%emt 0:01:26]} Rc8 {[%emt 0:01:08]} 17. Bd2 {[%emt 0:01:10]} Be7 {[%emt 0:16:
12]} 18. Ng3 {[%emt 0:05:14]} Bg6 {[%emt 0:00:03]} 19. f4 {[%emt 0:00:11]} Bxc2
{[%emt 0:00:10]} 20. Qxc2 {[%emt 0:00:03]} g6 {[%emt 0:00:06]} 21. Qd1 {
[%emt 0:01:04]} Nb8 {[%emt 0:02:29]} 22. Kh2 {[%emt 0:10:27]} Nc6 {[%emt 0:00:
51]} 23. Qf3 {[%emt 0:01:31]} Qd7 {[%emt 0:02:47]} 24. Ne2 {[%emt 0:03:48]} O-O
{[%emt 0:02:47]} 25. Rg1 $36 {[%emt 0:02:31][%cal Gg1g8,Gf4f5] Muminova
blundered away an excellent chance to go for a hat trick as she obtained a
crushing attack against Dzagnidze. However she misplayed it horribly and she
even managed to lose the game in a tragic turn of events.} f6 {[%emt 0:07:07]}
26. Qh5 {[%emt 0:03:22]} Bd8 {[%emt 0:06:27]} 27. f5 {[%emt 0:05:10]} exf5 {
[%emt 0:00:33]} 28. e6 {[%emt 0:05:47]} Bc7+ {[%emt 0:01:10]} 29. Kh1 {[%emt 0:
00:29]} Qxe6 {[%emt 0:05:42]} 30. Rxg6+ {[%emt 0:00:07]} Kh8 {[%emt 0:00:01]}
31. Rh6 {[%emt 0:00:29]} Rf7 {[%emt 0:02:37]} 32. Bg5 {[%emt 0:03:42]} Qe4+ {
[%emt 0:00:33]} 33. f3 {[%emt 0:00:05]} Qe7 {[%emt 0:00:03]} 34. Nf4 {[%emt 0:
00:56]} Bxf4 {[%emt 0:02:11]} 35. Bxf4 {[%emt 0:00:15]} Rg8 {[%emt 0:00:24]}
36. Qxf5 {[%emt 0:02:16]} Rgg7 {[%emt 0:01:25]} 37. Qd3 {[%emt 0:02:41]} Rf8 {
[%emt 0:00:44]} 38. Bd2 {[%emt 0:00:26]} Qd6 {[%emt 0:01:52]} 39. Rg1 {[%emt 0:
04:24]} Rxg1+ {[%emt 0:00:44]} 40. Kxg1 {[%emt 0:00:00]} Rf7 {[%emt 0:00:00]}
41. Qf5 {[%emt 0:14:29]} Ne7 {[%emt 0:05:44]} 42. Qf4 {[%emt 0:00:07]} Qe6 {
[%emt 0:09:28]} 43. Kf2 {[%emt 0:04:00]} Ng6 {[%emt 0:00:38]} 44. Qg4 {[%emt 0:
07:09]} f5 {[%emt 0:05:00]} 45. Qg5 {[%emt 0:00:30]} Re7 {[%emt 0:00:31]} 46.
Qe3 {[%emt 0:00:46]} Qd6 {[%emt 0:00:32]} 47. Qg5 {[%emt 0:00:58]} Qh2+ {
[%emt 0:00:13]} 48. Kf1 {[%emt 0:00:25]} Qe2+ {[%emt 0:00:05]} 49. Kg1 {
[%emt 0:00:45]} Qd1+ {[%emt 0:00:03]} 50. Kf2 {[%emt 0:00:33]} Re2+ {[%emt 0:
00:04]} 0-1

[Event "Paris FIDE GP"]
[Site "Elancourt"]
[Date "2013.09.22"]
[Round "1"]
[White "Fressinet, Laurent"]
[Black "Ponomariov, Ruslan"]
[Result "1/2-1/2"]
[ECO "B51"]
[WhiteElo "2708"]
[BlackElo "2756"]
[Annotator "ChessBase Website"]
[PlyCount "92"]
[EventDate "2013.09.22"]
[EventType "tourn"]
[EventRounds "11"]
[EventCountry "FRA"]
[EventCategory "20"]
[SourceTitle "CBM 157"]
[Source "ChessBase"]
[SourceDate "2013.11.12"]
[SourceVersion "1"]
[SourceVersionDate "2013.11.12"]
[SourceQuality "1"]
[TimeControl "40/7200:20/3600:900+30"]
[WhiteClock "2:00:00"]
[BlackClock "2:00:00"]

1. e4 {[%emt 0:00:00]} c5 {[%emt 0:01:29] Ponomariov was able to neutralize
Fressinet's White pieces without too many problems. The players kept playing
on in a strategicaly interesting game. Black was able to break through on the
queenside with b5, a standard idea in this pawn structure. White's b-pawn was
left isolated and weak, but Fressinet was able to exchange enough pieces to
make Ponomariov's d6 pawn vulnerable. With this the game further simplified
into a drawn endgame.} 2. Nf3 {[%emt 0:01:25]} d6 {[%emt 0:00:39]} 3. Bb5+ {
[%emt 0:00:07]} Nd7 {[%emt 0:00:58]} 4. d4 {[%emt 0:01:06]} cxd4 {[%emt 0:01:
51]} 5. Qxd4 {[%emt 0:00:07]} a6 {[%emt 0:00:14]} 6. Bxd7+ {[%emt 0:00:24]}
Bxd7 {[%emt 0:00:29]} 7. c4 {[%emt 0:00:19]} Nf6 {[%emt 0:03:06]} 8. Bg5 {
[%emt 0:08:09]} e6 {[%emt 0:02:41]} 9. Nc3 {[%emt 0:01:36]} Be7 {[%emt 0:12:52]
} 10. Rd1 {[%emt 0:09:48]} Bc6 {[%emt 0:10:02]} (10... Qc7 11. O-O Rc8 (11...
O-O $6 12. Bxf6 Bxf6 13. e5 {Ponomariov})) 11. O-O {[%emt 0:03:50]} O-O {
[%emt 0:02:11]} (11... Qc7) 12. Qd3 {[%emt 0:07:18]} (12. Rfe1 h6 13. Bxf6 Bxf6
14. Qxd6 Qxd6 15. Rxd6 Rfc8 16. Rd3 b5 17. cxb5 axb5 18. a3 Rab8 19. Nd4 b4 20.
Nxc6 Rxc6 21. axb4 Rxb4 22. e5 Bg5 23. g3 Rxb2 24. Ne4 Rcc2 25. Rd7 Ra2 26. Rb1
Re2 27. Rb8+ Kh7 28. Nxg5+ hxg5 29. Rxf7 Re1+ 30. Kg2 Rxe5 31. Rbb7 Rf5 32.
Rxf5 exf5 33. Rb5 Kg6 34. Rb6+ Kh5 35. Rb7 Kh6 36. Rb5 g6 37. h3 Ra3 38. Rb4
Ra2 39. Rc4 Rb2 40. Ra4 Rc2 41. Rb4 Ra2 {Bologan,V (2663)-Van Wely,L (2680)
playchess.com INT 2004 1/2-1/2}) 12... Qc7 $146 {[%emt 0:05:04]} (12... Qb6 13.
Rd2 Rfd8 14. Rfd1 h6 15. Bh4 Rac8 16. Qe2 Qc7 17. b3 b6 18. Rd3 Qb7 19. Re1 Qc7
20. Red1 Qb7 21. Re1 Qc7 22. Red1 Qb7 23. Re1 Qc7 {1/2-1/2 (23) Melkonian,S 
(2301)-Martiyanov,N Salekhard 2003}) 13. a4 {[%emt 0:09:03]} Rfd8 {[%emt 0:11:
50]} 14. Rfe1 {[%emt 0:05:03]} Rac8 {[%emt 0:01:44]} 15. Nd4 {[%emt 0:05:44]}
Be8 {[%emt 0:03:44]} 16. b3 {[%emt 0:01:18]} Qc5 {[%emt 0:03:39]} 17. Be3 {
[%emt 0:03:29]} Qa5 {[%emt 0:04:11]} 18. Bd2 {[%emt 0:01:40]} Qc5 {[%emt 0:01:
21]} 19. h3 {[%emt 0:01:37]} Nd7 {[%emt 0:03:00]} 20. Be3 {[%emt 0:02:15]} Qa5
{[%emt 0:04:11]} 21. Qd2 {[%emt 0:02:46]} Kh8 {[%emt 0:03:02]} 22. Nc2 {
[%emt 0:08:54]} Ne5 {[%emt 0:05:09]} 23. Rc1 {[%emt 0:07:10]} Nc6 {[%emt 0:04:
05]} 24. Red1 {[%emt 0:06:10]} Bf6 {[%emt 0:03:41]} 25. Nd4 {[%emt 0:02:43]}
Qb4 {[%emt 0:01:50]} 26. Rb1 {[%emt 0:02:20]} Nxd4 {[%emt 0:03:46]} 27. Bxd4 {
[%emt 0:00:09]} Bxd4 {[%emt 0:01:29]} 28. Qxd4 {[%emt 0:00:28]} b5 $132 {
[%emt 0:00:32][%csl Rb1,Rb3]} 29. axb5 {[%emt 0:00:18]} axb5 {[%emt 0:00:03]}
30. Nxb5 {[%emt 0:00:32]} Bxb5 {[%emt 0:00:11]} 31. cxb5 {[%emt 0:00:03]} Qxb5
{[%emt 0:00:09]} 32. Rbc1 {[%emt 0:01:50]} Qxb3 {[%emt 0:02:34]} 33. Rxc8 {
[%emt 0:00:20]} Rxc8 {[%emt 0:00:04]} 34. Qxd6 {[%emt 0:00:06]} h6 {[%emt 0:00:
24]} 35. Qd3 {[%emt 0:00:24]} Qxd3 {[%emt 0:00:32]} 36. Rxd3 {[%emt 0:00:06]}
g5 {[%emt 0:00:30]} 37. h4 {[%emt 0:01:58]} Kg7 {[%emt 0:00:24]} 38. hxg5 {
[%emt 0:00:28]} hxg5 {[%emt 0:00:04]} 39. f3 {[%emt 0:00:35]} Rc4 {[%emt 0:00:
54]} 40. Kf2 {[%emt 0:00:00]} g4 {[%emt 0:00:00]} 41. Kg3 {[%emt 0:00:36]} gxf3
{[%emt 0:00:23]} 42. gxf3 {[%emt 0:00:03]} Kf6 {[%emt 0:00:11]} 43. Rd7 {
[%emt 0:00:12]} Ra4 {[%emt 0:00:16]} 44. Rb7 {[%emt 0:00:07]} Rc4 {[%emt 0:00:
08]} 45. Rd7 {[%emt 0:00:04]} Ra4 {[%emt 0:00:06]} 46. Rb7 {[%emt 0:00:06]} Rc4
{[%emt 0:00:06]} 1/2-1/2

[Event "Metz op 31th"]
[Site "Metz"]
[Date "2013.04.21"]
[Round "2"]
[White "Crut, Aurelien"]
[Black "Shchekachev, Andrei"]
[Result "0-1"]
[ECO "B51"]
[WhiteElo "2367"]
[BlackElo "2520"]
[Annotator "Metz Alekhine/Primel,D"]
[PlyCount "62"]
[EventDate "2013.04.20"]
[EventType "swiss"]
[EventRounds "9"]
[EventCountry "FRA"]
[SourceTitle "EXT 2016"]
[Source "ChessBase"]
[SourceDate "2015.10.08"]
[SourceVersion "1"]
[SourceVersionDate "2015.10.08"]
[SourceQuality "1"]
[TimeControl "40/5400:1800+30"]
[WhiteClock "1:30:00"]
[BlackClock "1:30:00"]

1. e4 c5 2. Nf3 d6 3. Bb5+ Nd7 {La même variante était jouée à la table
voisine} 4. d4 (4. c3 {Degraeve,J (2567)-Doluhanova,E (2332) Op 31th Metz 2013
(2.11) 1/2}) (4. O-O a6 5. Bd3 Ngf6 6. c3 b5 7. Bc2 Bb7 8. Qe2 (8. Re1 e5 9. d4
Be7 10. Nbd2)) 4... Ngf6 5. Nc3 cxd4 6. Qxd4 h6 $5 {Très peu joué} (6... e5 {
La grande ligne} 7. Qd3 h6) (6... g6 7. e5 dxe5 8. Nxe5 Bg7 9. O-O O-O 10. Rd1
Qb6 11. Nxd7 Nxd7 12. Qxb6 Nxb6 13. Bg5 Be6 14. Bxe7 {1/2-1/2 (14) Zvjaginsev,
V (2659)-Mamedov,R (2637) Khanty-Mansiysk 2013}) 7. e5 (7. Be3 e5 {Yudasin,L 
(2635)-Svidler,P (2630) Haifa 1996 (3) 1-0}) 7... dxe5 8. Nxe5 a6 9. Bxd7+ Bxd7
10. Bf4 Bb5 $5 {Une idée originale} (10... Be6 11. Qb4) 11. O-O-O $146 (11.
Qxd8+ Rxd8 12. Nxb5 axb5 {Avec une meilleure finale pour les Blancs} 13. Ke2 (
13. O-O) 13... e6 14. Rad1 $14) (11. Qb4 e6 12. Qb3 Qa5 13. O-O-O Qb4 14. Be3
Rc8 15. Rhe1 Qxb3 16. axb3 Bb4 17. Bd2 {1/2-1/2 (17) Prie,E (2445)-Dorfman,J 
(2555) Hilversum 1993}) (11. Nxb5 $143 axb5 12. Qb4 Qa5 13. Qxa5 Rxa5 $132 {
[%csl Ra2]}) 11... Qxd4 12. Rxd4 e6 13. Rhd1 (13. Nxb5 axb5 14. Kb1 Bc5 15. Rd2
Ne4 $132) 13... Bc5 14. R4d2 O-O 15. a3 Rfc8 $1 {[%csl Rd1,Rd2] Une position
exemplaire avec les R Blanches qui surcontrolent la colonne "d" mais elles
manquent de cases d'accès} 16. Be3 $6 {Le Bc5 contrôle la case d'accès à
la case "d6" mais le P isolé "e3" sera une faiblesse en finale.} (16. Nxb5
axb5 17. Nd7 $6 Ne4 {[%csl Rd2,Rf2]}) 16... Bxe3 17. fxe3 Be8 18. Rd6 Rc5 19.
Nf3 Rac8 $36 {[%csl Gc5,Gc8,Rd1,Rd6] Le doublement des R Noires est nettement
plus efficace que celui des Blancs} 20. Rd8 Kf8 (20... R8c7) 21. R1d4 $2 (21.
Rxc8 $1 {Principe "de la pièce superflue" de Dvoretsky,les deux R Blanches
ont tendance à se gênet en luttant pour les mêmes cases} Rxc8 22. Rd4 Bc6
23. e4 Ke7 24. Ne5 $11) 21... R8c7 $1 {Evite l'échange et la Rd4 prive
l'autre R de case de repli, les Blancs sont déjà en danger!} 22. e4 Ke7 $15
23. Rb8 $2 Nd7 $1 {[%csl Rb8] Les Blancs devaient maintenant regretter d'avoir
évité l'échange des R car ils ont virtuellement une pièce de moins.} 24.
Ra8 Nb6 {[%cal Gb6a8,Gb6c4] Gagnant un tempo important pour jouer Nc4 et
menacer la prise Na3} 25. Rb8 Nc4 $36 {[%csl Rc3][%cal Gc4a3]} 26. Rdd8 (26.
Rbd8 Nxa3) 26... Bd7 27. Rg8 Nxb2 {le triomphe du plan des Noirs et la
position Blanche s'effondre} 28. Kxb2 Rxc3 29. Rxb7 Rxc2+ 30. Kb1 Rc1+ 31. Ka2
Rxb7 {Une partie instructive} 0-1

[Event "Metz op 31th"]
[Site "Metz"]
[Date "2013.04.21"]
[Round "2"]
[White "Degraeve, Jean Marc"]
[Black "Doluhanova, Evgeniya"]
[Result "1/2-1/2"]
[ECO "B51"]
[WhiteElo "2567"]
[BlackElo "2332"]
[Annotator "Metz Alekhine/Primel,D"]
[PlyCount "66"]
[EventDate "2013.04.20"]
[EventType "swiss"]
[EventRounds "9"]
[EventCountry "FRA"]
[SourceTitle "EXT 2016"]
[Source "ChessBase"]
[SourceDate "2015.10.08"]
[SourceVersion "1"]
[SourceVersionDate "2015.10.08"]
[SourceQuality "1"]
[TimeControl "40/5400:1800+30"]
[WhiteClock "1:30:00"]
[BlackClock "1:30:00"]

1. e4 c5 2. Nf3 d6 3. Bb5+ Nd7 (3... Bd7 4. Bxd7+ Qxd7 5. c4 Nf6 6. Nc3 g6 7.
d4 cxd4 8. Nxd4 Bg7 9. f3 O-O 10. O-O Rc8 11. b3 d5 12. exd5 Nxd5 13. Nxd5 e6
$11) (3... Nc6 4. O-O (4. Bxc6+)) 4. c3 (4. d4 {Crut,A (2367)-Shchekachev,A 
(2520) Op 31th Metz 2013 (2.12) 0-1}) 4... a6 (4... Ngf6) 5. Ba4 b5 6. Bc2 e5
$5 {Après le choix 3. Nd7, cette variante "e5" confirme que les Noirs jouent
pour le gain} (6... Bb7 {Plus courant} 7. O-O (7. d4)) 7. d4 $1 {Il y a très
peu de parties dans la base avec 6.  e5 mais la partie va transposer plus ou
moins d'une sicilienne vers une ... espagnole!} (7. O-O Bb7 8. d4 {
Karastoichev,E-Ajanski,J BUL-ch 16th Sofia 1962 (17) 1-0}) 7... Ngf6 8. O-O Bb7
9. Re1 Qc7 (9... Be7 {Aurait transposé définitivement dans une espagnole} 10.
Nbd2 O-O {Kotan,L (2364)-Meszaros,A (2327) Zuzmara op Aggtelek 2004 (6) 0-1})
10. Nbd2 g6 {On a une espagnole " améliorée" puisque au lieu de jouer Be7
suivi plus tard de Rf8e8,Bf8 et g6 avec enfin Bg7} 11. a4 $146 (11. d5 Bg7 12.
h3 c4 13. Qe2 Nc5 14. Nh2 O-O-O 15. a4 Kb8 16. axb5 axb5 17. Nhf3 Nh5 18. Nxc4
bxc4 19. Qxc4 Rhe8 20. Be3 Nf4 21. Ra3 f5 22. Rea1 fxe4 23. Qb5 Qf7 24. Ra8+
Kc7 25. R8a7 Qxd5 26. Bxc5 dxc5 27. c4 Qc6 28. Qxc6+ Kxc6 29. Bxe4+ Kd6 30.
Rxb7 {1-0 (30) Mellado Trivino,J (2395)-Bravo Santos,F Seville 1994}) 11... Bg7
12. axb5 axb5 13. Rxa8+ Bxa8 14. dxe5 dxe5 15. c4 b4 16. Nf1 O-O 17. N3d2 Ne8
18. Ne3 Nd6 19. b3 Nb6 20. Bb2 {[%csl Gb2]} Bc6 21. Bd3 Ra8 $132 {[%cal Ga8a2]}
22. Nd5 $1 {Fischer dans son livre sur ses 60 meilleures parties avait souvent
joué ce thème d'occupation de l'avant-poste "d5" sur l'Espagnole} Qd8 23. Bb1
Bxd5 24. exd5 {[%csl Re5]} Nd7 25. Nf3 Qe7 26. Qc1 h6 27. Qe3 f5 28. Nd2 e4 $11
29. Bxg7 Kxg7 30. f3 $1 Ra1 31. fxe4 fxe4 32. Qg3 Nf6 33. Nf1 {[%cal Gf1e3]}
Ng8 {suite illisible et nulle au 44ème coup. La partie était assez plate
mais elle était néanmoins digne d'intérêt du fait de la transposition
d'une sicilienne B51 en espagnole C93!} (33... Nf5 $5 {[%cal Gf5d4,Gf5g3]})
1/2-1/2

[Event "Belgrade RAD 30"]
[Site "Belgrade"]
[Date "1977.01.18"]
[Round "4.2"]
[White "Velimirovic, Dragoljub"]
[Black "Sax, Gyula"]
[Result "1/2-1/2"]
[ECO "B51"]
[WhiteElo "2525"]
[BlackElo "2565"]
[Annotator "Primel,D"]
[PlyCount "164"]
[EventDate "1977.01.15"]
[EventType "tourn"]
[EventRounds "13"]
[EventCountry "SRB"]
[EventCategory "9"]
[SourceTitle "EXT 2018"]
[Source "ChessBase"]
[SourceDate "2017.10.13"]
[SourceVersion "1"]
[SourceVersionDate "2017.10.13"]
[SourceQuality "1"]
[TimeControl "40/9000:16/5400:0"]

1. e4 c5 2. Nf3 d6 3. Bb5+ Nd7 4. c3 Ngf6 5. d3 e6 $146 (5... a6 6. Ba4 e5 7.
O-O Be7 8. Re1 O-O 9. d4 b5 10. Bc2 Bb7 11. Nbd2 Qc7 12. Nf1 cxd4 13. cxd4 Rac8
14. Bd3 exd4 15. Nxd4 Rfe8 16. Bf4 Bf8 17. Rc1 Qb6 18. Rxc8 Rxc8 19. Nb3 Ne5
20. Be3 Qc7 21. Bd4 d5 22. exd5 Nxd3 23. Qxd3 Nxd5 24. Qg3 Qxg3 25. hxg3 Nb4
26. Ne3 Nxa2 27. Nf5 Bd5 28. Nc5 Nb4 29. Ne7+ Bxe7 30. Rxe7 Nc6 31. Rd7 Nxd4
32. Rxd5 Ne6 {1/2-1/2 (32) Rellstab,L-Eliskases,E Sarajevo 1958}) (5... g6 6.
O-O Bg7) 6. O-O Be7 7. Re1 O-O 8. Nbd2 a6 9. Ba4 b5 10. Bc2 Bb7 11. Nf1 {
[%cal Gf1g3,Gf1e3] Joué dans l'esprit d'une Espagnole} Qc7 $11 12. Ng3 Ne5 13.
h3 Nfd7 $5 14. Nh2 $6 {[%csl Ra1,Rc1][%cal Gf2f4] Après ce coup, les Blancs
commencent à avoir un retard de développement} d5 15. d4 (15. Bf4) (15. f4
Bh4 $1 $36 {[%csl Re1,Rg3]}) 15... cxd4 16. cxd4 Nc6 17. e5 Nxd4 {[%cal Gc7c2]}
18. Bxh7+ Kxh7 19. Qxd4 Qc4 20. Qd1 d4 {[%csl Gb7] Un coup risqué} 21. b3 Qd5
$36 22. Nf3 Nc5 23. Ba3 d3 (23... Rac8) 24. Bxc5 Bxc5 25. Re4 $1 Kg8 26. b4 Bb6
27. Rg4 f5 28. Rg6 (28. exf6 Rxf6) 28... Rf7 (28... Kf7 $6 29. Rg5 Rad8 30. Nh5
Rg8 {[%csl Rf7]}) 29. Nh5 $1 {[%cal Gh5g7,Gh5f6,Gf6d5]} Bd8 30. Qd2 f4 $1 {
Un fort sacrifice de P} 31. Nxf4 Qe4 32. Rg4 Qf5 {[%cal Gb7f3,Gf5e5]} 33. Qxd3
Qxd3 34. Nxd3 Bxf3 35. gxf3 Rxf3 36. Nf4 Bb6 37. Nxe6 Rxf2 $1 {Malgré les
échanges, la position reste compliquée} 38. Kh1 Ra7 39. Rag1 Rff7 40. Re1 Rf3
41. Ng5 {Ajournement} Re3 42. Rxe3 Bxe3 43. Nf3 Kf7 {Le B est fort dans cette
position ouverte avec des P sur les deux ailes et le hongrois a des chances
d'annuler} 44. Re4 Bc1 45. Nd4 Rc7 46. e6+ $1 Ke8 (46... Ke7 47. Rg4) 47. Kg2
Rc4 {[%csl Rb4]} 48. Kf3 {[%csl Re8,Gf3]} Rxb4 49. Nc6 Rc4 50. Rxc4 bxc4 51.
Ke4 Bb2 52. a4 (52. Kd5) 52... Bf6 53. Ke3 c3 $132 {Après l'échange des R,
le B va dominer le N} 54. Kd3 g6 55. Kc2 Kf8 {[%csl Gc6,Ge6] Le K Noir a des
grandes difficultés pour attaquer le P"e6" car les Noirs ne peuvent pas jouer
Kg7,Be5 à cause du Nc6 et le passage par g5 perdrait le B après e6e7} 56. Kd3
Ke8 57. Nb4 a5 58. Nc6 $1 Bh8 59. Nxa5 Ke7 60. Nc6+ Kxe6 61. Nb4 Kd6 62. Kc4
Bg7 63. Na2 c2 64. Kb3 Kc5 65. Nc1 Bh6 66. Nd3+ Kd4 67. Kxc2 Kc4 68. Ne5+ Kb4
69. Nxg6 Kxa4 70. Kd3 Kb4 71. h4 Bg7 72. Nf4 Ba1 73. Ne6 Kb5 74. Nd4+ Kb6 75.
h5 Bb2 76. Ne2 Bg7 77. Ke4 Kc6 78. Kf5 Bh6 79. Kg6 Be3 80. Ng3 Kd7 81. Kf7 Bd2
82. Ne4 Bc1 1/2-1/2